[Event "NJSK 2022 Jeugd A"]
[Site "Almelo, Netherlands"]
[Date "2022.05.05"]
[Round "5.7"]
[White "Hubers, Daan"]
[Black "Visser, Berend"]
[Result "1/2-1/2"]
[TimeControl "90min/40moves + 30min + 30sec/move"]
[WhiteElo "1818"]
[BlackElo "1763"]

1. b4 {[%clk 01:30:57]} {[%emt 00:00:03]} d5 {[%clk 01:29:56]} {[%emt
00:01:04]} 2. Bb2 {[%clk 01:31:21]} {[%emt 00:00:06]} Bf5 {[%clk 01:30:16]}
{[%emt 00:00:10]} 3. e3 {[%clk 01:31:28]} {[%emt 00:00:23]} Nf6 {[%clk
01:30:17]} {[%emt 00:00:29]} 4. a4 {[%clk 01:30:13]} {[%emt 00:01:45]} e6
{[%clk 01:29:35]} {[%emt 00:01:12]} 5. b5 {[%clk 01:29:58]} {[%emt 00:00:44]}
Bd6 {[%clk 01:27:46]} {[%emt 00:02:20]} 6. Nf3 {[%clk 01:28:52]} {[%emt
00:01:35]} h6 {[%clk 01:24:47]} {[%emt 00:03:29]} 7. Bd3 {[%clk 01:22:48]}
{[%emt 00:06:33]} Bxd3 {[%clk 01:24:21]} {[%emt 00:00:57]} 8. cxd3 {[%clk
01:22:37]} {[%emt 00:00:41]} O-O {[%clk 01:23:49]} {[%emt 00:01:03]} 9. O-O
{[%clk 01:20:54]} {[%emt 00:02:13]} Nbd7 {[%clk 01:23:20]} {[%emt 00:00:59]} 10.
Re1 {[%clk 01:17:21]} {[%emt 00:04:02]} e5 {[%clk 01:22:08]} {[%emt 00:01:42]}
11. d4 {[%clk 01:16:57]} {[%emt 00:00:55]} e4 {[%clk 01:21:23]} {[%emt
00:01:15]} 12. Ne5 {[%clk 01:17:16]} {[%emt 00:00:11]} Re8 {[%clk 01:20:58]}
{[%emt 00:00:55]} 13. f4 {[%clk 01:09:53]} {[%emt 00:07:52]} a6 {[%clk
01:18:46]} {[%emt 00:02:43]} 14. Nc3 {[%clk 01:07:34]} {[%emt 00:02:49]} a5
{[%clk 01:14:25]} {[%emt 00:04:51]} 15. Qb3 {[%clk 00:46:24]} {[%emt 00:21:39]}
Nb6 {[%clk 01:14:12]} {[%emt 00:00:44]} 16. Rac1 {[%clk 00:38:29]} {[%emt
00:08:25]} Bxe5 {[%clk 01:09:00]} {[%emt 00:05:43]} 17. fxe5 {[%clk 00:32:50]}
{[%emt 00:06:08]} Nh7 {[%clk 01:09:16]} {[%emt 00:00:14]} 18. Rf1 {[%clk
00:26:33]} {[%emt 00:06:46]} Ng5 {[%clk 01:07:43]} {[%emt 00:02:04]} 19. Rf2
{[%clk 00:22:56]} {[%emt 00:04:07]} Re7 {[%clk 01:03:14]} {[%emt 00:04:59]} 20.
Ba3 {[%clk 00:22:08]} {[%emt 00:01:18]} Rd7 {[%clk 01:02:36]} {[%emt 00:01:08]}
21. Ne2 {[%clk 00:21:40]} {[%emt 00:00:57]} Rc8 {[%clk 00:59:58]} {[%emt
00:03:09]} 22. Nf4 {[%clk 00:21:07]} {[%emt 00:01:02]} Ne6 {[%clk 00:58:11]}
{[%emt 00:02:18]} 23. Nxe6 {[%clk 00:21:23]} {[%emt 00:00:14]} fxe6 {[%emt
00:00:22]} 24. Rf8+ {[%clk 00:21:38]} Qxf8 {[%clk 00:58:46]} {[%emt 00:00:18]}
25. Bxf8 {[%clk 00:22:05]} {[%emt 00:00:03]} Rxf8 {[%clk 00:59:06]} {[%emt
00:00:10]} 26. Rf1 {[%clk 00:20:10]} {[%emt 00:02:25]} Rdf7 {[%clk 00:56:15]}
{[%emt 00:03:20]} 27. Rxf7 {[%clk 00:19:44]} Rxf7 {[%clk 00:56:38]} {[%emt
00:01:04]} 28. d3 {[%clk 00:17:36]} {[%emt 00:02:37]} exd3 {[%clk 00:56:22]}
{[%emt 00:00:46]} 29. Qxd3 {[%clk 00:18:04]} {[%emt 00:00:02]} Kf8 {[%clk
00:48:41]} {[%emt 00:08:11]} 30. Qh7 {[%clk 00:15:03]} {[%emt 00:03:31]} Re7
{[%clk 00:41:49]} {[%emt 00:07:22]} 31. Qh8+ {[%clk 00:12:52]} {[%emt
00:02:41]} Kf7 {[%clk 00:42:13]} {[%emt 00:00:07]} 32. Qb8 {[%clk 00:13:17]}
{[%emt 00:00:04]} Nxa4 {[%clk 00:42:08]} {[%emt 00:00:35]} 33. Qxb7 {[%clk
00:07:22]} {[%emt 00:06:25]} Nb6 {[%clk 00:41:55]} {[%emt 00:00:43]} 34. Qa6
{[%clk 00:04:49]} {[%emt 00:03:02]} a4 {[%clk 00:42:17]} {[%emt 00:00:09]} 35.
Kf2 {[%clk 00:04:40]} {[%emt 00:00:40]} Kg6 {[%clk 00:42:03]} {[%emt 00:00:44]}
36. Qa5 {[%clk 00:04:12]} {[%emt 00:00:58]} Re8 {[%clk 00:41:48]} {[%emt
00:00:45]} 37. Qc3 {[%clk 00:03:14]} {[%emt 00:01:27]} Ra8 {[%clk 00:30:15]}
{[%emt 00:12:05]} 38. Qxc7 {[%clk 00:02:32]} {[%emt 00:01:11]} a3 {[%clk
00:30:20]} {[%emt 00:00:26]} 39. Qc2+ {[%clk 00:01:08]} {[%emt 00:01:54]} Kf7
{[%clk 00:30:23]} {[%emt 00:00:27]} 40. Qa2 {[%clk 00:00:38]} {[%emt 00:01:00]}
Nc4 {[%clk 00:29:03]} {[%emt 00:01:51]} 41. e4 {[%clk 00:27:17]} {[%emt
00:03:51]} Ra5 {[%clk 00:56:18]} {[%emt 00:03:15]} 42. exd5 {[%clk 00:26:35]}
{[%emt 00:01:12]} exd5 {[%clk 00:56:38]} {[%emt 00:00:10]} 43. Qb1 {[%clk
00:23:50]} {[%emt 00:03:15]} a2 {[%clk 00:54:59]} {[%emt 00:02:09]} 44. Qf5+
{[%clk 00:24:02]} {[%emt 00:00:17]} Ke7 {[%clk 00:53:44]} {[%emt 00:01:46]} 45.
e6 {[%clk 00:24:17]} {[%emt 00:00:15]} Nd6 {[%clk 00:52:55]} {[%emt 00:01:19]}
46. Qg6 {[%clk 00:22:11]} {[%emt 00:02:35]} Rxb5 {[%clk 00:50:31]} {[%emt
00:02:54]} 47. Qxg7+ {[%clk 00:21:03]} {[%emt 00:01:39]} Kxe6 {[%clk 00:50:29]}
{[%emt 00:00:32]} 48. Qxh6+ {[%clk 00:18:11]} {[%emt 00:03:21]} Kd7 {[%clk
00:50:47]} {[%emt 00:00:12]} 49. Qh7+ {[%clk 00:17:54]} {[%emt 00:00:46]} Kd8
{[%clk 00:44:31]} {[%emt 00:06:47]} 50. Qa7 {[%clk 00:17:37]} {[%emt 00:00:47]}
Ne4+ {[%clk 00:44:10]} {[%emt 00:00:51]} 51. Ke3 {[%clk 00:15:45]} {[%emt
00:02:21]} Rb3+ {[%clk 00:43:37]} {[%emt 00:01:04]} 52. Kf4 {[%clk 00:15:56]}
{[%emt 00:00:18]} Nc3 {[%clk 00:43:02]} {[%emt 00:01:06]} 53. Ke5 {[%clk
00:15:05]} {[%emt 00:01:19]} Rb1 {[%clk 00:41:49]} {[%emt 00:01:45]} 54. Qa5+
{[%clk 00:14:12]} {[%emt 00:01:23]} Kd7 {[%clk 00:41:05]} {[%emt 00:01:13]} 55.
Qa7+ {[%clk 00:13:43]} {[%emt 00:00:59]} Kc8 {[%clk 00:39:40]} {[%emt
00:01:55]} 56. Qa8+ {[%clk 00:13:53]} {[%emt 00:00:20]} Kc7 {[%clk 00:37:13]}
{[%emt 00:02:58]} 57. Qa7+ {[%clk 00:13:28]} {[%emt 00:00:54]} 1/2-1/2

[Event "NJSK 2022 Jeugd A"]
[Site "Almelo, Netherlands"]
[Date "2022.05.06"]
[Round "6.1"]
[White "Van Foreest, Machteld"]
[Black "Albers, Sasa"]
[Result "0-1"]
[TimeControl "90min/40moves + 30min + 30sec/move"]
[WhiteElo "2287"]
[BlackElo "2117"]

1. e4 {[%clk 01:30:58]} {[%emt 00:00:02]} c6 {[%clk 01:30:56]} {[%emt
00:00:05]} 2. d3 {[%clk 01:31:19]} {[%emt 00:00:09]} d5 {[%clk 01:31:14]}
{[%emt 00:00:12]} 3. Nf3 {[%clk 01:31:44]} {[%emt 00:00:05]} dxe4 {[%clk
01:31:26]} {[%emt 00:00:17]} 4. dxe4 {[%clk 01:32:09]} {[%emt 00:00:05]} Qxd1+
{[%clk 01:31:51]} {[%emt 00:00:06]} 5. Kxd1 {[%clk 01:32:34]} {[%emt 00:00:06]}
Nf6 {[%clk 01:28:49]} {[%emt 00:03:32]} 6. Nfd2 {[%clk 01:32:57]} {[%emt
00:00:07]} g6 {[%clk 01:28:52]} {[%emt 00:00:26]} 7. f3 {[%clk 01:31:51]}
{[%emt 00:01:36]} Bg7 {[%clk 01:28:47]} {[%emt 00:00:35]} 8. Nc3 {[%clk
01:30:45]} {[%emt 00:01:36]} O-O {[%clk 01:28:31]} {[%emt 00:00:46]} 9. Nb3
{[%clk 01:29:31]} {[%emt 00:01:44]} Rd8+ {[%clk 01:23:11]} {[%emt 00:05:50]} 10.
Ke1 {[%clk 01:29:50]} {[%emt 00:00:12]} Nbd7 {[%clk 01:21:40]} {[%emt
00:02:00]} 11. a4 {[%clk 01:28:17]} {[%emt 00:02:03]} Ne8 {[%clk 01:18:00]}
{[%emt 00:04:09]} 12. Bg5 {[%clk 01:23:53]} {[%emt 00:04:55]} Kf8 {[%clk
00:59:32]} {[%emt 00:18:57]} 13. Rd1 {[%clk 01:22:46]} {[%emt 00:01:38]} Nc7
{[%clk 00:57:07]} {[%emt 00:02:54]} 14. Bc4 {[%clk 01:18:02]} {[%emt 00:05:15]}
b6 {[%clk 00:47:58]} {[%emt 00:09:40]} 15. Bf4 {[%clk 01:13:36]} {[%emt
00:04:55]} Ne8 {[%clk 00:39:32]} {[%emt 00:08:56]} 16. Be2 {[%emt 00:25:05]}
Bb7 {[%clk 00:36:49]} 17. a5 {[%clk 00:50:15]} {[%emt 00:02:30]} Ne5 {[%clk
00:34:00]} {[%emt 00:03:18]} 18. Na4 {[%clk 00:49:07]} {[%emt 00:01:39]} Rxd1+
{[%clk 00:34:23]} {[%emt 00:00:07]} 19. Kxd1 {[%clk 00:49:28]} {[%emt
00:00:08]} Nd7 {[%clk 00:25:51]} {[%emt 00:09:02]} 20. Kc1 {[%clk 00:49:03]}
{[%emt 00:00:56]} Nef6 {[%clk 00:14:58]} {[%emt 00:11:23]} 21. Rd1 {[%clk
00:48:23]} {[%emt 00:01:10]} Rc8 {[%clk 00:14:19]} {[%emt 00:01:09]} 22. g4
{[%clk 00:43:51]} {[%emt 00:05:02]} Ke8 {[%clk 00:11:24]} {[%emt 00:03:25]} 23.
g5 {[%clk 00:43:08]} {[%emt 00:01:14]} Nh5 {[%clk 00:11:49]} {[%emt 00:00:04]}
24. Be3 {[%clk 00:43:35]} {[%emt 00:00:04]} Be5 {[%clk 00:11:36]} {[%emt
00:00:43]} 25. axb6 {[%clk 00:38:07]} {[%emt 00:05:59]} Nxb6 {[%clk 00:11:36]}
{[%emt 00:00:29]} 26. Bxb6 {[%clk 00:35:23]} {[%emt 00:03:14]} axb6 {[%clk
00:12:05]} 27. Nxb6 {[%clk 00:35:43]} {[%emt 00:00:10]} Rd8 {[%clk 00:12:26]}
{[%emt 00:00:09]} 28. c4 {[%clk 00:29:26]} {[%emt 00:06:47]} Rxd1+ {[%clk
00:11:24]} {[%emt 00:01:32]} 29. Bxd1 {[%clk 00:28:34]} {[%emt 00:01:23]} Kd8
{[%clk 00:11:50]} {[%emt 00:00:03]} 30. Nc5 {[%clk 00:27:16]} {[%emt 00:01:48]}
Kc7 {[%clk 00:12:14]} {[%emt 00:00:06]} 31. Nxb7 {[%clk 00:26:10]} {[%emt
00:01:37]} Kxb7 {[%clk 00:12:43]} 32. c5 {[%clk 00:25:37]} {[%emt 00:01:03]}
Bxh2 {[%clk 00:13:10]} {[%emt 00:00:03]} 33. b4 {[%clk 00:25:04]} {[%emt
00:01:03]} Bf4+ {[%clk 00:13:11]} {[%emt 00:00:29]} 34. Kb2 {[%clk 00:25:30]}
{[%emt 00:00:04]} Bxg5 {[%clk 00:12:43]} {[%emt 00:00:58]} 35. f4 {[%clk
00:19:05]} {[%emt 00:06:55]} Nxf4 {[%clk 00:12:49]} {[%emt 00:00:24]} 36. Kc3
{[%clk 00:19:07]} {[%emt 00:00:29]} Ne6 {[%clk 00:11:51]} {[%emt 00:01:27]} 37.
Kc4 {[%clk 00:17:27]} {[%emt 00:02:10]} Bf4 {[%clk 00:11:27]} {[%emt 00:00:54]}
38. Bf3 {[%clk 00:16:14]} {[%emt 00:01:42]} Nd8 {[%clk 00:10:27]} {[%emt
00:01:31]} 39. e5 {[%clk 00:12:22]} {[%emt 00:04:22]} Kc7 {[%clk 00:04:44]}
{[%emt 00:06:14]} 40. b5 {[%clk 00:11:37]} {[%emt 00:01:14]} cxb5+ {[%clk
00:04:10]} {[%emt 00:01:04]} 41. Kxb5 {[%clk 00:11:59]} {[%emt 00:00:08]} Bxe5
{[%clk 00:03:28]} {[%emt 00:01:13]} 42. c6 {[%clk 00:05:43]} {[%emt 00:06:45]}
Ne6 {[%clk 00:22:00]} {[%emt 00:11:57]} 43. Nd5+ {[%clk 00:28:05]} {[%emt
00:08:09]} Kd6 {[%clk 00:20:57]} {[%emt 00:01:32]} 44. Ne3 {[%clk 00:24:09]}
{[%emt 00:04:27]} Nd4+ {[%clk 00:10:03]} {[%emt 00:11:25]} 45. Kb6 {[%clk
00:24:33]} {[%emt 00:00:06]} Nxf3 {[%clk 00:08:49]} {[%emt 00:01:43]} 46. Nc4
{[%clk 00:24:12]} {[%emt 00:00:52]} Kd5 {[%clk 00:09:04]} {[%emt 00:00:14]} 47.
Nxe5 {[%clk 00:24:29]} {[%emt 00:00:13]} Nxe5 {[%clk 00:09:28]} {[%emt
00:00:05]} 48. c7 {[%clk 00:24:52]} {[%emt 00:00:08]} Nc4+ {[%clk 00:09:55]}
{[%emt 00:00:03]} 49. Ka6 {[%clk 00:25:13]} {[%emt 00:00:09]} Nd6 {[%clk
00:10:20]} {[%emt 00:00:05]} 0-1

[Event "NJSK 2022 Jeugd A"]
[Site "Almelo, Netherlands"]
[Date "2022.05.06"]
[Round "6.2"]
[White "Roebers, Eline"]
[Black "Klaren, Duncan"]
[Result "1-0"]
[TimeControl "90min/40moves + 30min + 30sec/move"]
[WhiteElo "2369"]
[BlackElo "1916"]

1. e4 {[%clk 01:30:58]} {[%emt 00:00:02]} c5 {[%clk 01:30:55]} {[%emt
00:00:05]} 2. Nf3 {[%clk 01:31:25]} {[%emt 00:00:04]} d6 {[%clk 01:31:20]}
{[%emt 00:00:04]} 3. d4 {[%clk 01:31:53]} {[%emt 00:00:02]} cxd4 {[%clk
01:31:45]} {[%emt 00:00:08]} 4. Nxd4 {[%clk 01:32:20]} {[%emt 00:00:01]} Nf6
{[%clk 01:32:07]} {[%emt 00:00:06]} 5. Nc3 {[%clk 01:32:48]} {[%emt 00:00:03]}
a6 {[%clk 01:32:30]} {[%emt 00:00:08]} 6. Bg5 {[%clk 01:33:00]} {[%emt
00:00:16]} Nbd7 {[%clk 01:32:53]} {[%emt 00:00:07]} 7. Qe2 {[%clk 01:33:26]}
{[%emt 00:00:05]} h6 {[%clk 01:33:12]} {[%emt 00:00:10]} 8. Bh4 {[%clk
01:33:54]} {[%emt 00:00:02]} g6 {[%clk 01:33:27]} {[%emt 00:00:15]} 9. f4
{[%clk 01:34:19]} {[%emt 00:00:06]} e5 {[%clk 01:33:49]} {[%emt 00:00:09]} 10.
fxe5 {[%clk 01:34:45]} {[%emt 00:00:03]} dxe5 {[%clk 01:34:13]} {[%emt
00:00:06]} 11. O-O-O {[%clk 01:35:12]} {[%emt 00:00:03]} Qc7 {[%clk 01:33:44]}
{[%emt 00:01:00]} 12. Nb3 {[%clk 01:35:39]} {[%emt 00:00:03]} Be7 {[%clk
01:33:28]} {[%emt 00:00:45]} 13. Qf3 {[%clk 01:35:50]} {[%emt 00:00:20]} g5
{[%clk 01:28:09]} {[%emt 00:05:49]} 14. Bg3 {[%clk 01:35:40]} {[%emt 00:00:40]}
Nb6 {[%clk 01:15:31]} {[%emt 00:13:08]} 15. Be2 {[%clk 01:29:29]} {[%emt
00:06:41]} Bd7 {[%clk 01:13:09]} {[%emt 00:02:52]} 16. Nd4 {[%clk 01:09:02]}
{[%emt 00:20:57]} O-O-O {[%clk 00:57:51]} {[%emt 00:15:48]} 17. Nf5 {[%clk
01:06:29]} {[%emt 00:03:04]} Bb4 {[%clk 00:57:08]} {[%emt 00:01:12]} 18. a3
{[%clk 00:51:42]} {[%emt 00:15:16]} g4 {[%clk 00:42:50]} {[%emt 00:14:49]} 19.
Qf2 {[%clk 00:37:42]} {[%emt 00:14:30]} Bc5 {[%clk 00:26:09]} {[%emt 00:17:11]}
20. Nd6+ {[%clk 00:35:54]} {[%emt 00:02:18]} Bxd6 {[%clk 00:25:49]} {[%emt
00:00:49]} 21. Qxf6 {[%clk 00:36:20]} {[%emt 00:00:05]} Be6 {[%clk 00:25:01]}
{[%emt 00:01:18]} 22. Nd5 {[%clk 00:36:21]} {[%emt 00:00:29]} Bxd5 {[%clk
00:22:53]} {[%emt 00:02:38]} 23. exd5 {[%clk 00:36:40]} {[%emt 00:00:11]} h5
{[%clk 00:22:34]} {[%emt 00:00:48]} 24. Rd3 {[%clk 00:32:09]} {[%emt 00:05:01]}
Kb8 {[%clk 00:21:54]} {[%emt 00:01:10]} 25. Rhd1 {[%clk 00:21:41]} {[%emt
00:10:58]} Na4 {[%clk 00:18:27]} {[%emt 00:03:57]} 26. Qf5 {[%clk 00:18:37]}
{[%emt 00:03:35]} Qe7 {[%clk 00:16:52]} {[%emt 00:02:05]} 27. Re3 {[%clk
00:16:45]} {[%emt 00:02:23]} Rde8 {[%clk 00:16:39]} {[%emt 00:00:43]} 28. Rf1
{[%clk 00:14:39]} {[%emt 00:02:35]} Nb6 {[%clk 00:14:51]} {[%emt 00:02:17]} 29.
Rb3 {[%clk 00:12:27]} {[%emt 00:02:43]} Bc5 {[%clk 00:12:33]} {[%emt 00:02:48]}
30. Be1 {[%clk 00:08:15]} {[%emt 00:04:41]} Ref8 {[%clk 00:07:35]} {[%emt
00:05:29]} 31. Bd3 {[%clk 00:05:49]} {[%emt 00:02:56]} Ka7 {[%clk 00:07:14]}
{[%emt 00:00:51]} 32. Be4 {[%clk 00:05:07]} {[%emt 00:01:11]} Nc4 {[%clk
00:06:19]} {[%emt 00:01:26]} 33. Qf6 {[%clk 00:02:45]} {[%emt 00:02:52]} Qd6
{[%clk 00:04:46]} {[%emt 00:02:02]} 34. Rc3 {[%clk 00:01:20]} {[%emt 00:01:55]}
Qxf6 {[%clk 00:04:03]} {[%emt 00:01:14]} 35. Rxf6 {[%clk 00:01:44]} {[%emt
00:00:06]} Be7 {[%clk 00:04:22]} {[%emt 00:00:11]} 36. Rf1 {[%clk 00:00:36]}
{[%emt 00:01:38]} Bg5+ {[%clk 00:03:14]} {[%emt 00:01:37]} 37. Kb1 {[%clk
00:00:52]} {[%emt 00:00:14]} Ne3 {[%clk 00:03:40]} {[%emt 00:00:05]} 38. Bf2
{[%clk 00:01:16]} {[%emt 00:00:06]} f5 {[%clk 00:02:10]} {[%emt 00:02:00]} 39.
Bxf5 {[%clk 00:01:42]} {[%emt 00:00:04]} 1-0

[Event "NJSK 2022 Jeugd A"]
[Site "Almelo, Netherlands"]
[Date "2022.05.06"]
[Round "6.3"]
[White "Verheul, Job"]
[Black "Elgersma, Onno"]
[Result "1-0"]
[TimeControl "90min/40moves + 30min + 30sec/move"]
[WhiteElo "1707"]
[BlackElo "2303"]

1. e4 {[%clk 01:30:59]} c6 {[%clk 01:30:55]} {[%emt 00:00:05]} 2. d4 {[%clk
01:31:23]} {[%emt 00:00:06]} d5 {[%clk 01:31:21]} {[%emt 00:00:04]} 3. e5
{[%clk 01:31:48]} {[%emt 00:00:07]} Bf5 {[%clk 01:31:48]} {[%emt 00:00:02]} 4.
h4 {[%clk 01:32:11]} {[%emt 00:00:06]} h5 {[%clk 01:32:14]} {[%emt 00:00:04]} 5.
c4 {[%clk 01:32:34]} {[%emt 00:00:08]} e6 {[%clk 01:31:33]} {[%emt 00:01:09]} 6.
Nc3 {[%clk 01:32:58]} {[%emt 00:00:06]} Ne7 {[%clk 01:30:36]} {[%emt 00:01:27]}
7. Nge2 {[%clk 01:32:53]} {[%emt 00:00:35]} Qb6 {[%clk 01:26:17]} {[%emt
00:04:49]} 8. Ng3 {[%clk 01:32:38]} {[%emt 00:00:45]} Bg6 {[%clk 01:26:15]}
{[%emt 00:00:31]} 9. Bg5 {[%clk 01:21:44]} {[%emt 00:11:25]} Nd7 {[%clk
01:24:26]} {[%emt 00:02:20]} 10. Rc1 {[%clk 01:22:07]} {[%emt 00:00:07]} dxc4
{[%clk 01:16:46]} {[%emt 00:08:10]} 11. Bxc4 {[%clk 01:22:02]} {[%emt
00:00:35]} Rd8 {[%clk 01:16:46]} {[%emt 00:00:31]} 12. Na4 {[%clk 01:19:09]}
{[%emt 00:03:23]} Qc7 {[%clk 01:14:03]} {[%emt 00:03:13]} 13. O-O {[%clk
01:01:21]} {[%emt 00:18:17]} Nb6 {[%clk 01:05:47]} {[%emt 00:08:46]} 14. Nc5
{[%clk 00:59:29]} {[%emt 00:02:22]} Nxc4 {[%clk 01:05:47]} {[%emt 00:00:31]} 15.
Rxc4 {[%clk 00:59:49]} {[%emt 00:00:09]} Rd5 {[%clk 01:05:24]} {[%emt
00:00:52]} 16. Ne2 {[%clk 00:54:22]} {[%emt 00:05:58]} b5 {[%clk 00:20:50]}
{[%emt 00:45:05]} 17. Rc3 {[%clk 00:39:35]} {[%emt 00:15:17]} Nf5 {[%clk
00:19:59]} {[%emt 00:01:20]} 18. Nf4 {[%clk 00:21:26]} {[%emt 00:18:40]} Rxd4
{[%clk 00:19:20]} {[%emt 00:01:09]} 19. Qb3 {[%clk 00:21:50]} {[%emt 00:00:06]}
Rxf4 {[%clk 00:07:24]} {[%emt 00:12:26]} 20. Bxf4 {[%clk 00:18:07]} {[%emt
00:04:12]} Bxc5 {[%clk 00:06:46]} {[%emt 00:01:08]} 21. Rxc5 {[%clk 00:18:29]}
{[%emt 00:00:08]} O-O {[%clk 00:07:12]} {[%emt 00:00:05]} 22. Qxb5 {[%clk
00:15:41]} {[%emt 00:03:18]} Qe7 {[%clk 00:07:08]} {[%emt 00:00:34]} 23. Qc4
{[%clk 00:12:33]} {[%emt 00:03:38]} Qxh4 {[%clk 00:06:44]} {[%emt 00:00:53]} 24.
Rxc6 {[%clk 00:10:47]} {[%emt 00:02:16]} Ne7 {[%clk 00:06:33]} {[%emt
00:00:41]} 25. Bg3 {[%clk 00:01:59]} {[%emt 00:09:17]} Qxc4 {[%clk 00:06:23]}
{[%emt 00:00:40]} 26. Rxc4 {[%clk 00:02:28]} {[%emt 00:00:01]} Bd3 {[%clk
00:06:49]} {[%emt 00:00:04]} 27. Rc7 {[%clk 00:02:52]} {[%emt 00:00:07]} Bxf1
{[%clk 00:06:35]} {[%emt 00:00:45]} 28. Kxf1 {[%clk 00:02:20]} {[%emt
00:01:01]} Nd5 {[%clk 00:06:46]} {[%emt 00:00:19]} 29. Rxa7 {[%clk 00:02:25]}
{[%emt 00:00:25]} Rc8 {[%clk 00:07:02]} {[%emt 00:00:14]} 30. Rb7 {[%clk
00:02:18]} {[%emt 00:00:38]} Rc2 {[%clk 00:06:50]} {[%emt 00:00:43]} 31. a4
{[%clk 00:02:00]} {[%emt 00:00:48]} g5 {[%clk 00:07:11]} {[%emt 00:00:08]} 32.
a5 {[%clk 00:01:11]} {[%emt 00:01:20]} h4 {[%clk 00:07:38]} {[%emt 00:00:03]}
33. Bh2 {[%clk 00:01:08]} {[%emt 00:00:33]} g4 {[%clk 00:07:36]} {[%emt
00:00:32]} 34. a6 {[%clk 00:01:03]} {[%emt 00:00:35]} g3 {[%clk 00:07:31]}
{[%emt 00:00:34]} 35. Bxg3 {[%clk 00:00:54]} {[%emt 00:00:40]} hxg3 {[%clk
00:02:43]} {[%emt 00:05:18]} 36. a7 {[%clk 00:01:19]} {[%emt 00:00:05]} Rxf2+
{[%clk 00:02:58]} {[%emt 00:00:15]} 37. Ke1 {[%clk 00:01:17]} {[%emt 00:00:33]}
Nf4 {[%clk 00:03:25]} {[%emt 00:00:04]} 38. a8=Q+ {[%clk 00:01:39]} {[%emt
00:00:07]} Kg7 {[%clk 00:03:51]} {[%emt 00:00:04]} 39. Rb3 {[%clk 00:01:13]}
{[%emt 00:00:55]} Nxg2+ {[%clk 00:04:11]} {[%emt 00:00:11]} 40. Kd1 {[%clk
00:01:05]} {[%emt 00:00:38]} Rf1+ {[%clk 00:03:41]} {[%emt 00:01:00]} 41. Kc2
{[%clk 00:18:28]} {[%emt 00:13:06]} Ne1+ {[%clk 00:30:55]} {[%emt 00:03:17]} 42.
Kd2 {[%clk 00:17:56]} {[%emt 00:01:02]} g2 {[%clk 00:28:06]} {[%emt 00:03:19]}
43. Rg3+ {[%clk 00:18:13]} {[%emt 00:00:13]} Kh7 {[%clk 00:28:28]} {[%emt
00:00:08]} 44. Qg8+ {[%clk 00:18:37]} {[%emt 00:00:06]} Kh6 {[%clk 00:28:53]}
{[%emt 00:00:05]} 45. Qh8# {[%clk 00:18:28]} {[%emt 00:00:07]} 1-0